fUSD/lending_fUSD_20240104
["ID","MTS","AMOUNT","RATE_DAILY","PERIOD"]
[310218729,1704402686206,-910.81,0.00034246,2]
[310218730,1704402686215,-500.0,0.00034246,2]
[310218731,1704402686227,-500.0,0.00034246,2]
[310218732,1704402686237,-500.0,0.00034246,2]
[310218733,1704402686246,-500.0,0.00034246,2]
[310218734,1704402686255,-1009.55,0.00034246,2]
[310218735,1704402686264,-500.0,0.00034246,2]
[310218736,1704402686273,-500.0,0.00034246,2]
[310218737,1704402686283,-1739.77,0.00034246,2]
[310218738,1704402686293,-500.0,0.00034246,2]
[310218739,1704402686302,-500.0,0.00034246,2]
[310218740,1704402686311,-500.0,0.00034246,2]
[310218741,1704402686321,-500.0,0.00034246,2]
[310218742,1704402686330,-1282.1,0.00034246,2]
[310218743,1704402686339,-500.0,0.00034246,2]
[310218744,1704402686349,-500.0,0.00034246,2]
[310218745,1704402686358,-500.0,0.00034246,2]
[310218746,1704402686367,-6408.05,0.00034246,2]
[310218747,1704402686377,-500.0,0.00034246,2]
[310218748,1704402686386,-2129.19,0.00034246,2]
[310218749,1704402686397,-1154.96,0.00034246,2]
[310218750,1704402686417,-1729.84,0.00034246,2]
[310218751,1704402686429,-500.0,0.00034246,2]
[310218752,1704402686440,-500.0,0.00034246,2]
[310218753,1704402686451,-500.0,0.00034246,2]
[310218754,1704402686462,-500.0,0.00034246,2]
[310218755,1704402686471,-500.0,0.00034246,2]
[310218756,1704402686482,-913.73,0.00034246,2]
[310218757,1704402686493,-500.0,0.00034246,2]
[310218758,1704402686503,-500.0,0.00034246,2]
[310218759,1704402686513,-500.0,0.00034246,2]
[310218760,1704402686523,-500.0,0.00034246,2]
[310218761,1704402686535,-2264.53,0.00034246,2]
[310218762,1704402686546,-4842.28,0.00034246,2]
[310218763,1704402686557,-500.0,0.00034246,2]
[310218764,1704402686567,-500.0,0.00034246,2]
[310218765,1704402686586,-500.0,0.00034246,2]
[310218766,1704402686597,-500.0,0.00034246,2]
[310218767,1704402686607,-2281.55,0.00034246,2]
[310218768,1704402686617,-500.0,0.00034246,2]
[310218769,1704402686628,-500.0,0.00034246,2]
[310218770,1704402686637,-500.0,0.00034246,2]
[310218771,1704402686648,-500.0,0.00034246,2]
[310218772,1704402686658,-500.0,0.00034246,2]
[310218773,1704402686668,-500.0,0.00034246,2]
[310218774,1704402686679,-500.0,0.00034246,2]
[310218775,1704402686690,-500.0,0.00034246,2]
[310218776,1704402686701,-500.0,0.00034246,2]
[310218777,1704402686713,-500.0,0.00034246,2]
[310218778,1704402686724,-500.0,0.00034246,2]
[310218779,1704402686734,-983.89,0.00034246,2]
[310218780,1704402686744,-539.42,0.00034246,2]
[310218781,1704402686756,-500.0,0.00034246,2]
[310218782,1704402686766,-500.0,0.00034246,2]
[310218783,1704402686776,-500.0,0.00034246,2]
[310218784,1704402686787,-500.0,0.00034246,2]
[310218785,1704402686796,-500.0,0.00034246,2]
[310218786,1704402686806,-500.0,0.00034246,2]
[310218787,1704402686816,-500.0,0.00034246,2]
[310218788,1704402686825,-1154.67,0.00034246,2]
[310218789,1704402686835,-599.93,0.00034246,2]
[310218790,1704402686845,-616.54,0.00034246,2]
[310218791,1704402686855,-500.0,0.00034246,2]
[310218792,1704402686864,-1525.72,0.00034246,2]
[310218793,1704402686874,-613.63,0.00034246,2]
[310218794,1704402686884,-637.93,0.00034246,2]
[310218795,1704402686893,-500.0,0.00034246,2]
[310218796,1704402686903,-500.0,0.00034246,2]
[310218797,1704402686912,-500.0,0.00034246,2]
[310218798,1704402686922,-878.05,0.00034246,2]
[310218799,1704402686932,-500.0,0.00034246,2]
[310218800,1704402686941,-500.0,0.00034246,2]
[310218801,1704402686951,-902.92,0.00034246,2]
[310218802,1704402686960,-500.0,0.00034246,2]
[310218803,1704402686970,-500.0,0.00034246,2]
[310218804,1704402686981,-500.0,0.00034246,2]
[310218805,1704402686991,-500.0,0.00034246,2]
[310218806,1704402687000,-589.16,0.00034246,2]
[310218807,1704402687011,-500.0,0.00034246,2]
[310218808,1704402687021,-500.0,0.00034246,2]
[310218809,1704402687030,-500.0,0.00034246,2]
[310218810,1704402687040,-500.0,0.00034246,2]
[310218811,1704402687049,-500.0,0.00034246,2]
[310218812,1704402687060,-500.0,0.00034246,2]
[310218813,1704402687070,-984.56,0.00034246,2]
[310218814,1704402687080,-500.0,0.00034246,2]
[310218815,1704402687089,-563.07,0.00034246,2]
[310218816,1704402687098,-500.0,0.00034246,2]
[310218817,1704402687107,-2695.69,0.00034246,2]
[310218818,1704402687117,-500.0,0.00034246,2]
[310218819,1704402687126,-786.61,0.00034246,2]
[310218820,1704402687136,-500.0,0.00034246,2]
[310218821,1704402687146,-1449.26,0.00034246,2]
[310218822,1704402687156,-6403.69,0.00034246,2]
[310218823,1704402687166,-500.0,0.00034246,2]
[310218824,1704402687176,-500.0,0.00034246,2]
[310218825,1704402687187,-565.56,0.00034246,2]
[310218826,1704402687197,-573.87,0.00034246,2]
[310218827,1704402687207,-500.0,0.00034246,2]
[310218828,1704402687219,-500.0,0.00034246,2]
[310218829,1704402687230,-500.0,0.00034246,2]
[310218830,1704402687239,-750.62,0.00034246,2]
[310218831,1704402687249,-1503.12,0.00034246,2]
[310218832,1704402687259,-500.0,0.00034246,2]
[310218833,1704402687270,-500.0,0.00034246,2]
[310218834,1704402687280,-515.26,0.00034246,2]
[310218835,1704402687289,-500.0,0.00034246,2]
[310218836,1704402687299,-500.0,0.00034246,2]
[310218837,1704402687309,-500.0,0.00034246,2]
[310218838,1704402687319,-1352.57,0.00034246,2]
[310218839,1704402687329,-500.0,0.00034246,2]
[310218840,1704402687339,-4498.58,0.00034246,2]
[310218841,1704402687348,-541.6,0.00034246,2]
[310218842,1704402687358,-1460.37,0.00034246,2]
[310218843,1704402687367,-647.5,0.00034246,2]
[310218844,1704402687377,-500.0,0.00034246,2]
[310218845,1704402687387,-500.0,0.00034246,2]
[310218846,1704402687397,-895.41,0.00034246,2]
[310218847,1704402687408,-500.0,0.00034246,2]
[310218848,1704402687419,-500.0,0.00034246,2]
[310218849,1704402687429,-500.0,0.00034246,2]
[310218850,1704402687438,-500.0,0.00034246,2]
[310218851,1704402687449,-500.0,0.00034246,2]
[310218852,1704402687459,-500.0,0.00034246,2]
[310218853,1704402687468,-500.0,0.00034246,2]
[310218854,1704402687480,-761.85,0.00034246,2]
[310218855,1704402687490,-500.0,0.00034246,2]
[310218856,1704402687499,-500.0,0.00034246,2]
[310218857,1704402687509,-500.0,0.00034246,2]
[310218858,1704402687519,-500.0,0.00034246,2]
[310218859,1704402687528,-2111.24,0.00034246,2]
[310218860,1704402687538,-500.0,0.00034246,2]
[310218861,1704402687548,-1731.46,0.00034246,2]
[310218862,1704402687558,-500.0,0.00034246,2]
[310218863,1704402687568,-928.81,0.00034246,2]
[310218864,1704402687579,-500.0,0.00034246,2]
[310218865,1704402687589,-1937.57,0.00034246,2]
[310218866,1704402687599,-1123.24,0.00034246,2]
[310218867,1704402687609,-550.84,0.00034246,2]
[310218868,1704402687619,-500.0,0.00034246,2]
[310218869,1704402687629,-500.0,0.00034246,2]
[310218870,1704402687639,-500.0,0.00034246,2]
[310218871,1704402687649,-504.38,0.00034246,2]
[310218872,1704402687660,-1072.15,0.00034246,2]
[310218873,1704402687670,-729.82,0.00034246,2]
[310218874,1704402687680,-500.0,0.00034246,2]
[310218875,1704402687756,-500.0,0.00034246,2]
[310218876,1704402687766,-500.0,0.00034246,2]
[310218877,1704402687776,-500.0,0.00034246,2]
[310218878,1704402687785,-500.0,0.00034246,2]
[310218879,1704402687795,-2257.92,0.00034246,2]
[310218880,1704402687806,-500.0,0.00034246,2]
[310218881,1704402687817,-500.0,0.00034246,2]
[310218882,1704402687827,-1167.4,0.00034246,2]
[310218883,1704402687836,-831.43,0.00034246,2]
[310218884,1704402687847,-500.0,0.00034246,2]
[310218885,1704402687858,-1414.25,0.00034246,2]
[310218886,1704402687868,-1040.38,0.00034246,2]
[310218887,1704402687877,-500.0,0.00034246,2]
[310218888,1704402687887,-828.1,0.00034246,2]
[310218889,1704402687896,-500.0,0.00034246,2]
[310218890,1704402687905,-500.0,0.00034246,2]
[310218891,1704402687915,-500.0,0.00034246,2]
[310218892,1704402687925,-500.0,0.00034246,2]
[310218893,1704402687936,-508.32001966,0.00034246,2]
[310218894,1704402687946,-500.0,0.00034246,2]
[310218895,1704402687956,-500.0,0.00034246,2]
[310218896,1704402687966,-500.0,0.00034246,2]
[310218897,1704402687978,-550.66357076,0.00034246,2]
[310218898,1704402687987,-678.15,0.00034246,2]
[310218899,1704402687996,-500.0,0.00034246,2]
[310218900,1704402688005,-500.0,0.00034246,2]
[310218901,1704402688015,-500.0,0.00034246,2]
[310218902,1704402688024,-500.0,0.00034246,2]
[310218903,1704402688033,-500.0,0.00034246,2]
[310218904,1704402688042,-500.0,0.00034246,2]
[310218905,1704402688051,-1448.36,0.00034246,2]
[310218906,1704402688061,-6181.0,0.00034285,2]
[310218907,1704402688070,-165.27,0.00034319,2]
[310218908,1704402688079,-702.1757,0.0003442,2]
[310218909,1704402688088,-390.4348,0.0003442,2]
[310218910,1704402688097,-150.0,0.00034426,2]
[310218911,1704402688106,-1000.0,0.000345,2]
[310218912,1704402688115,-661.53,0.0003452,2]
[310218913,1704402688124,-724.57,0.0003452,2]
[310218914,1704402688133,-500.0,0.0003452,2]
[310218915,1704402688142,-500.0,0.0003452,2]
[310218916,1704402688151,-500.0,0.0003452,2]
[310218917,1704402688160,-500.0,0.0003452,2]
[310218918,1704402688169,-500.0,0.0003452,2]
[310218919,1704402688179,-1000.0,0.0003452,2]
[310218920,1704402688189,-500.0,0.0003452,2]
[310218921,1704402688199,-500.0,0.0003452,2]
[310218922,1704402688208,-500.0,0.0003452,2]
[310218923,1704402688216,-500.0,0.0003452,2]
[310218924,1704402688226,-500.0,0.0003452,2]
[310218925,1704402688236,-554.75,0.0003452,2]
[310218926,1704402688246,-491.6,0.0003452,2]
[310218927,1704402688256,-182.56101809,0.0003452,2]
[310218928,1704402688266,-500.0,0.0003452,2]
[310218929,1704402688275,-500.0,0.0003452,2]
[310218930,1704402688285,-500.0,0.0003452,2]
[310218931,1704402688294,-500.0,0.0003452,2]
[310218932,1704402688304,-500.0,0.0003452,2]
[310218933,1704402688313,-500.0,0.0003452,2]
[310218934,1704402688322,-500.0,0.0003452,2]
[310218935,1704402688332,-500.0,0.0003452,2]
[310218936,1704402688341,-595.47007725,0.0003452,2]
[310218937,1704402688350,-500.0,0.0003452,2]
[310218938,1704402688359,-500.0,0.0003452,2]
[310218939,1704402688368,-500.0,0.0003452,2]
[310218940,1704402688378,-500.0,0.0003452,2]
[310218941,1704402688388,-500.0,0.0003452,2]
[310218942,1704402688397,-500.0,0.0003452,2]
[310218943,1704402688407,-500.0,0.0003452,2]
[310218944,1704402688418,-500.0,0.0003452,2]
[310218945,1704402688427,-500.0,0.0003452,2]
[310218946,1704402688436,-500.0,0.0003452,2]
[310218947,1704402688447,-500.0,0.0003452,2]
[310218948,1704402688457,-500.0,0.0003452,2]
[310218949,1704402688466,-500.1996002,0.0003452,2]
[310218950,1704402688475,-500.0,0.0003452,2]
[310218951,1704402688485,-500.0,0.0003452,2]
[310218952,1704402688494,-500.0,0.0003452,2]
[310218953,1704402688505,-500.0,0.0003452,2]
[310218954,1704402688514,-500.0,0.0003452,2]
[310218955,1704402688523,-500.0,0.0003452,2]
[310218956,1704402688534,-500.0,0.0003452,2]
[310218957,1704402688543,-500.0,0.0003452,2]
[310218958,1704402688554,-500.0,0.0003452,2]
[310218959,1704402688564,-252.32,0.0003452,2]
[310218960,1704402688574,-500.0,0.0003452,2]
[310218961,1704402688586,-500.0,0.0003452,2]
[310218962,1704402688596,-500.0,0.0003452,2]
[310218963,1704402688606,-500.0,0.0003452,2]
[310218964,1704402688616,-1160.79,0.0003452,2]
[310218965,1704402688626,-500.0,0.0003452,2]
[310218966,1704402688637,-500.0,0.0003452,2]
[310218967,1704402688648,-500.0,0.0003452,2]
[310218968,1704402688658,-500.0,0.0003452,2]
[310218969,1704402688667,-500.0,0.0003452,2]
[310218970,1704402688676,-500.0,0.0003452,2]
[310218971,1704402688685,-500.0,0.0003452,2]
[310218972,1704402688694,-500.0,0.0003452,2]
[310218973,1704402688704,-738.09,0.0003452,2]
[310218974,1704402688713,-500.0,0.0003452,2]
[310218975,1704402688722,-500.0,0.0003452,2]
[310218976,1704402688732,-500.0,0.0003452,2]
[310218977,1704402688741,-355.53661543,0.0003452,2]
[310218978,1704402688750,-500.0,0.0003452,2]
[310218979,1704402688759,-500.0,0.0003452,2]
[310218980,1704402688769,-500.0,0.0003452,2]
[310218981,1704402688777,-807.57,0.0003452,2]
[310218982,1704402688787,-500.0,0.0003452,2]
[310218983,1704402688796,-500.0,0.0003452,2]
[310218984,1704402688805,-500.0,0.0003452,2]
[310218985,1704402688814,-500.0,0.0003452,2]
[310218986,1704402688823,-500.0,0.0003452,2]
[310218987,1704402688832,-500.0,0.0003452,2]
[310218988,1704402688842,-527.72,0.0003452,2]
[310218989,1704402688851,-687.6,0.0003452,2]
[310218990,1704402688860,-500.0,0.0003452,2]
[310218991,1704402688869,-500.0,0.0003452,2]
[310218992,1704402688879,-500.0,0.0003452,2]
[310218993,1704402688888,-500.0,0.0003452,2]
[310218994,1704402688897,-500.0,0.0003452,2]
[310218995,1704402688906,-500.0,0.0003452,2]
[310218996,1704402688915,-500.0,0.0003452,2]
[310218997,1704402688924,-500.0,0.0003452,2]
[310218998,1704402688933,-500.0,0.0003452,2]
[310218999,1704402688942,-500.0,0.0003452,2]
[310219000,1704402688951,-500.0,0.0003452,2]
[310219001,1704402688960,-500.0,0.0003452,2]
[310219002,1704402688969,-500.0,0.0003452,2]
[310219003,1704402688979,-500.0,0.0003452,2]
[310219004,1704402688989,-500.0,0.0003452,2]
[310219005,1704402688998,-500.0,0.0003452,2]
[310219006,1704402689007,-602.44,0.0003452,2]
[310219007,1704402689016,-500.0,0.0003452,2]
[310219008,1704402689025,-500.0,0.0003452,2]
[310219009,1704402689034,-660.7,0.0003452,2]
[310219010,1704402689043,-500.0,0.0003452,2]
[310219011,1704402689052,-722.69,0.0003452,2]
[310219012,1704402689060,-598.95,0.0003452,2]
[310219013,1704402689069,-500.0,0.0003452,2]
[310219014,1704402689079,-500.0,0.0003452,2]
[310219015,1704402689088,-541.66,0.0003452,2]
[310219016,1704402689097,-500.0,0.0003452,2]
[310219017,1704402689106,-500.0,0.0003452,2]
[310219018,1704402689115,-500.0,0.0003452,2]
[310219019,1704402689125,-505.83,0.0003452,2]
[310219020,1704402689134,-502.68540461,0.0003452,2]
[310219021,1704402689143,-500.0,0.0003452,2]
[310219022,1704402689153,-500.0,0.0003452,2]
[310219023,1704402689162,-500.0,0.0003452,2]
[310219024,1704402689172,-500.0,0.0003452,2]
[310219025,1704402689184,-208.33,0.0003452,2]
[310219026,1704402689193,-500.0,0.0003452,2]
[310219027,1704402689202,-500.0,0.0003452,2]
[310219028,1704402689215,-500.0,0.0003452,2]
[310219029,1704402689225,-718.72,0.0003452,2]
[310219030,1704402689234,-680.79,0.0003452,2]
[310219031,1704402689243,-500.0,0.0003452,2]
[310219032,1704402689252,-340.6,0.0003452,2]
[310219033,1704402689262,-500.0,0.0003452,2]
[310219034,1704402689271,-500.0,0.0003452,2]
[310219035,1704402689280,-500.0,0.0003452,2]
[310219036,1704402689290,-1621.27,0.0003452,2]
[310219037,1704402689299,-500.0,0.0003452,2]
[310219038,1704402689309,-500.0,0.0003452,2]
[310219039,1704402689318,-500.0,0.0003452,2]
[310219040,1704402689327,-500.0,0.0003452,2]
[310219041,1704402689336,-738.09,0.0003452,2]
[310219042,1704402689345,-519.11,0.0003452,2]
[310219043,1704402689354,-500.0,0.0003452,2]
[310219044,1704402689364,-500.0,0.0003452,2]
[310219045,1704402689373,-754.73,0.0003452,2]
[310219046,1704402689383,-500.0,0.0003452,2]
[310219047,1704402689392,-500.0,0.0003452,2]
[310219048,1704402689402,-407.76993631,0.0003452,2]
[310219049,1704402689411,-578.29,0.0003452,2]
[310219050,1704402689425,-500.0,0.0003452,2]
[310219051,1704402689435,-500.0,0.0003452,2]
[310219052,1704402689446,-500.0,0.0003452,2]
[310219053,1704402689457,-500.0,0.0003452,2]
[310219054,1704402689468,-947.06,0.0003452,2]
[310219055,1704402689478,-1076.04,0.0003452,2]
[310219056,1704402689488,-500.0,0.0003452,2]
[310219057,1704402689497,-541.45,0.0003452,2]
[310219058,1704402689506,-500.0,0.0003452,2]
[310219059,1704402689516,-519.94,0.0003452,2]
[310219060,1704402689527,-500.0,0.0003452,2]
[310219061,1704402689537,-570.54,0.0003452,2]
[310219062,1704402689546,-596.45,0.0003452,2]
[310219063,1704402689555,-917.54,0.0003452,2]
[310219064,1704402689565,-500.0,0.0003452,2]
[310219065,1704402689574,-500.0,0.0003452,2]
[310219066,1704402689583,-500.0,0.0003452,2]
[310219067,1704402689593,-500.0,0.0003452,2]
[310219068,1704402689603,-500.0,0.0003452,2]
[310219069,1704402689613,-500.0,0.0003452,2]
[310219070,1704402689622,-639.13,0.0003452,2]
[310219071,1704402689633,-500.0,0.0003452,2]
[310219072,1704402689643,-774.28,0.0003452,2]
[310219073,1704402689653,-500.0,0.0003452,2]
[310219074,1704402689663,-642.46,0.0003452,2]
[310219075,1704402689673,-500.0,0.0003452,2]
[310219076,1704402689683,-665.84,0.0003452,2]
[310219077,1704402689693,-500.0,0.0003452,2]
[310219078,1704402689703,-500.0,0.0003452,2]
[310219079,1704402689712,-261.14806656,0.0003452,2]
[310219080,1704402689721,-500.0,0.0003452,2]
[310219081,1704402689732,-500.0,0.0003452,2]
[310219082,1704402689743,-500.0,0.0003452,2]
[310219083,1704402689753,-500.0,0.0003452,2]
[310219084,1704402689763,-500.0,0.0003452,2]
[310219085,1704402689773,-500.0,0.0003452,2]
[310219086,1704402689783,-500.0,0.0003452,2]
[310219087,1704402689793,-564.52,0.0003452,2]
[310219088,1704402689803,-637.90966414,0.0003452,2]
[310219089,1704402689812,-520.83,0.0003452,2]
[310219090,1704402689821,-1863.96,0.0003452,2]
[310219091,1704402689831,-500.0,0.0003452,2]
[310219092,1704402689840,-500.0,0.0003452,2]
[310219093,1704402689849,-500.0,0.0003452,2]
[310219094,1704402689859,-533.03,0.0003452,2]
[310219095,1704402689868,-1044.47,0.0003452,2]
[310219096,1704402689877,-500.0,0.0003452,2]
[310219097,1704402689886,-531.47,0.0003452,2]
[310219098,1704402689895,-564.43,0.0003452,2]
[310219099,1704402689905,-1039.05,0.0003452,2]
[310219100,1704402689915,-791.55,0.0003452,2]
[310219101,1704402689925,-1245.41,0.0003452,2]
[310219102,1704402689934,-500.0,0.0003452,2]
[310219103,1704402689943,-757.45,0.0003452,2]
[310219104,1704402689952,-521.07,0.0003452,2]
[310219105,1704402689961,-418.1082702,0.0003452,2]
[310219106,1704402689970,-162.01,0.0003452,2]
[310219107,1704402689982,-500.0,0.0003452,2]
[310219108,1704402689992,-663.54,0.0003452,2]
[310219109,1704402690001,-586.60002519,0.0003452,2]
[310219110,1704402690010,-988.41,0.0003452,2]
[310219111,1704402690019,-1253.45,0.0003452,2]
[310219112,1704402690029,-623.24,0.0003452,2]
[310219113,1704402690038,-1071.01,0.0003452,2]
[310219114,1704402690047,-500.0,0.0003452,2]
[310219115,1704402690057,-1080.17,0.0003452,2]
[310219116,1704402690066,-500.0,0.0003452,2]
[310219117,1704402690075,-500.0,0.0003452,2]
[310219118,1704402690084,-500.0,0.0003452,2]
[310219119,1704402690093,-2123.54,0.0003452,2]
[310219120,1704402690103,-1443.74,0.0003452,2]
[310219121,1704402690112,-500.0,0.0003452,2]
[310219122,1704402690122,-500.0,0.0003452,2]
[310219123,1704402690132,-500.0,0.0003452,2]
[310219124,1704402690141,-500.0,0.0003452,2]
[310219125,1704402690151,-500.0,0.0003452,2]
[310219126,1704402690160,-1276.68,0.0003452,2]
[310219127,1704402690170,-500.0,0.0003452,2]
[310219128,1704402690179,-500.0,0.0003452,2]
[310219129,1704402690190,-500.0,0.0003452,2]
[310219130,1704402690199,-500.0,0.0003452,2]
[310219131,1704402690209,-500.0,0.0003452,2]
[310219132,1704402690219,-500.0,0.0003452,2]
[310219133,1704402690231,-500.0,0.0003452,2]
[310219134,1704402690240,-500.0,0.0003452,2]
[310219135,1704402690249,-2290.92,0.0003452,2]
[310219136,1704402690259,-5464.43,0.0003452,2]
[310219137,1704402690269,-1286.86,0.0003452,2]
[310219138,1704402690278,-543.96,0.0003452,2]
[310219139,1704402690288,-623.16,0.0003452,2]
[310219140,1704402690298,-500.0,0.0003452,2]
[310219141,1704402690307,-1530.15,0.0003452,2]
[310219142,1704402690316,-2181.99,0.0003452,2]
[310219143,1704402690325,-500.0,0.0003452,2]
[310219144,1704402690334,-3262.68,0.0003452,2]
[310219145,1704402690343,-1391.97,0.0003452,2]
[310219146,1704402690353,-500.0,0.0003452,2]
[310219147,1704402690362,-500.0,0.0003452,2]
[310219148,1704402690371,-756.79,0.0003452,2]
[310219149,1704402690381,-618.7,0.0003452,2]
[310219150,1704402690391,-1812.71,0.0003452,2]
[310219151,1704402690400,-500.0,0.0003452,2]
[310219152,1704402690409,-500.0,0.0003452,2]
[310219153,1704402690419,-500.0,0.0003452,2]
[310219154,1704402690428,-500.0,0.0003452,2]
[310219155,1704402690437,-500.0,0.0003452,2]
[310219156,1704402690446,-927.7,0.0003452,2]
[310219157,1704402690455,-709.7,0.0003452,2]
[310219158,1704402690464,-1742.56,0.0003452,2]
[310219159,1704402690473,-500.0,0.0003452,2]
[310219160,1704402690484,-7042.65,0.0003452,2]
[310219161,1704402690493,-500.0,0.0003452,2]
[310219162,1704402690502,-500.0,0.0003452,2]
[310219163,1704402690511,-500.0,0.0003452,2]
[310219164,1704402690521,-500.0,0.0003452,2]
[310219165,1704402690532,-500.0,0.0003452,2]
[310219166,1704402690541,-500.0,0.0003452,2]
[310219167,1704402690551,-500.0,0.0003452,2]
[310219168,1704402690562,-910.81,0.0003452,2]
[310219169,1704402690571,-500.0,0.0003452,2]
[310219170,1704402690580,-500.0,0.0003452,2]
[310219171,1704402690590,-500.0,0.0003452,2]
[310219172,1704402690599,-1009.55,0.0003452,2]
[310219173,1704402690609,-500.0,0.0003452,2]
[310219174,1704402690620,-500.0,0.0003452,2]
[310219175,1704402690629,-1739.77,0.0003452,2]
[310219176,1704402690639,-500.0,0.0003452,2]
[310219177,1704402690649,-500.0,0.0003452,2]
[310219178,1704402690658,-500.0,0.0003452,2]
[310219179,1704402690668,-1282.1,0.0003452,2]
[310219180,1704402690677,-500.0,0.0003452,2]
[310219181,1704402690687,-500.0,0.0003452,2]
[310219182,1704402690696,-500.0,0.0003452,2]
[310219183,1704402690706,-500.0,0.0003452,2]
[310219184,1704402690715,-6408.05,0.0003452,2]
[310219185,1704402690724,-500.0,0.0003452,2]
[310219186,1704402690735,-2129.19,0.0003452,2]
[310219187,1704402690744,-1154.96,0.0003452,2]
[310219188,1704402690753,-1729.84,0.0003452,2]
[310219189,1704402690763,-500.0,0.0003452,2]
[310219190,1704402690772,-500.0,0.0003452,2]
[310219191,1704402690782,-500.0,0.0003452,2]
[310219192,1704402690791,-500.0,0.0003452,2]
[310219193,1704402690801,-500.0,0.0003452,2]
[310219194,1704402690810,-913.73,0.0003452,2]
[310219195,1704402690820,-500.0,0.0003452,2]
[310219196,1704402690830,-500.0,0.0003452,2]
[310219197,1704402690839,-500.0,0.0003452,2]
[310219198,1704402690848,-324.66647618,0.0003452,2]
[310219199,1704402690858,-2264.53,0.0003452,2]
[310219200,1704402690868,-4842.28,0.0003452,2]
[310219201,1704402690877,-500.0,0.0003452,2]
[310219202,1704402690887,-500.0,0.0003452,2]
[310219203,1704402690896,-500.0,0.0003452,2]
[310219204,1704402690905,-500.0,0.0003452,2]
[310219205,1704402690914,-2281.55,0.0003452,2]
[310219206,1704402690923,-500.0,0.0003452,2]
[310219207,1704402690933,-500.0,0.0003452,2]
[310219208,1704402690942,-500.0,0.0003452,2]
[310219209,1704402690953,-500.0,0.0003452,2]
[310219210,1704402690962,-500.0,0.0003452,2]
[310219211,1704402690972,-151.0,0.0003452,7]
[310219212,1704402690983,-500.0,0.0003452,2]
[310219213,1704402690993,-500.0,0.0003452,2]
[310219214,1704402691003,-500.0,0.0003452,2]
[310219215,1704402691012,-500.0,0.0003452,2]
[310219216,1704402691021,-500.0,0.0003452,2]
[310219217,1704402691031,-500.0,0.0003452,2]
[310219218,1704402691041,-983.89,0.0003452,2]
[310219219,1704402691051,-539.42,0.0003452,2]
[310219220,1704402691061,-500.0,0.0003452,2]
[310219221,1704402691070,-500.0,0.0003452,2]
[310219222,1704402691080,-500.0,0.0003452,2]
[310219223,1704402691089,-500.0,0.0003452,2]
[310219224,1704402691099,-500.0,0.0003452,2]
[310219225,1704402691108,-500.0,0.0003452,2]
[310219226,1704402691118,-500.0,0.0003452,2]
[310219227,1704402691127,-1154.67,0.0003452,2]
[310219228,1704402691137,-599.93,0.0003452,2]